[Event "Early-Titled-Tuesday-Blitz-January-16-2024"]
[Site "Chess.com"]
[Date "2024.01.16"]
[Round "8"]
[White "NewYearGirl"]
[Black "R2D2PTY"]
[Result "1-0"]
[WhiteElo "2389"]
[BlackElo "2224"]
[TimeControl "180+1"]
[EndTime "9:31:01 PST"]
[Termination "NewYearGirl won by resignation"]

1. e4 {[%clk 0:03:00.9]} 1... e5 {[%clk 0:02:58.9]} 2. Nf3 {[%clk 0:03:00.9]}
2... Nc6 {[%clk 0:02:58.8]} 3. Bc4 {[%clk 0:03:01.6]} 3... Bc5 {[%clk
0:02:58.3]} 4. b4 {[%clk 0:03:02.2]} 4... Bxb4 {[%clk 0:02:58]} 5. c3 {[%clk
0:03:02.5]} 5... Be7 {[%clk 0:02:58.7]} 6. d4 {[%clk 0:02:59.6]} 6... Na5 {[%clk
0:02:59.2]} 7. Nxe5 {[%clk 0:02:43]} 7... Nxc4 {[%clk 0:02:58.5]} 8. Nxc4 {[%clk
0:02:43.6]} 8... d5 {[%clk 0:02:59.3]} 9. exd5 {[%clk 0:02:38.1]} 9... Qxd5
{[%clk 0:03:00.2]} 10. Ne3 {[%clk 0:02:38.8]} 10... Qd7 {[%clk 0:02:53.3]} 11.
Nd2 {[%clk 0:02:29.2]} 11... Nf6 {[%clk 0:02:45]} 12. Nf3 {[%clk 0:02:29.5]}
12... O-O {[%clk 0:02:39.2]} 13. Ne5 {[%clk 0:02:29.6]} 13... Qd8 {[%clk
0:02:37]} 14. O-O {[%clk 0:02:26.8]} 14... c6 {[%clk 0:02:34.7]} 15. h3 {[%clk
0:02:22.2]} 15... Nd7 {[%clk 0:02:32]} 16. f4 {[%clk 0:02:19.9]} 16... f6 {[%clk
0:02:08.7]} 17. Qb3+ {[%clk 0:02:19.1]} 17... Kh8 {[%clk 0:02:08.8]} 18. Nf7+
{[%clk 0:02:18.3]} 18... Rxf7 {[%clk 0:02:08.3]} 19. Qxf7 {[%clk 0:02:19.2]}
19... Nf8 {[%clk 0:02:04.6]} 20. f5 {[%clk 0:02:06]} 20... Bd7 {[%clk
0:01:52.8]} 21. Ng4 {[%clk 0:02:01]} 21... c5 {[%clk 0:01:47.9]} 22. Nh6 {[%clk
0:01:54.2]} 22... Ne6 {[%clk 0:00:26.6]} 23. fxe6 {[%clk 0:01:50]} 23... Bb5
{[%clk 0:00:27.1]} 24. Nf5 {[%clk 0:01:00.9]} 1-0

[Event "Early-Titled-Tuesday-Blitz-January-16-2024"]
[Site "Chess.com"]
[Date "2024.01.16"]
[Round "8"]
[White "ChessBliss09"]
[Black "alekroth65"]
[Result "0-1"]
[WhiteElo "2090"]
[BlackElo "2341"]
[TimeControl "180+1"]
[EndTime "9:31:06 PST"]
[Termination "alekroth65 won by checkmate"]

1. d4 {[%clk 0:03:00.9]} 1... d6 {[%clk 0:02:59.3]} 2. c4 {[%clk 0:02:59.3]}
2... e5 {[%clk 0:02:59]} 3. dxe5 {[%clk 0:02:58.4]} 3... dxe5 {[%clk 0:02:59.9]}
4. Qxd8+ {[%clk 0:02:58.1]} 4... Kxd8 {[%clk 0:03:00.1]} 5. Nc3 {[%clk
0:02:57.6]} 5... c6 {[%clk 0:02:59]} 6. Nf3 {[%clk 0:02:53.5]} 6... f6 {[%clk
0:02:58.6]} 7. e4 {[%clk 0:02:51.5]} 7... Be6 {[%clk 0:02:57.4]} 8. Be3 {[%clk
0:02:50.4]} 8... Nd7 {[%clk 0:02:57.2]} 9. O-O-O {[%clk 0:02:47.5]} 9... Kc7
{[%clk 0:02:57]} 10. Be2 {[%clk 0:02:46.3]} 10... a5 {[%clk 0:02:55.8]} 11. a3
{[%clk 0:02:39.2]} 11... Ne7 {[%clk 0:02:51.4]} 12. Rd2 {[%clk 0:02:25.2]} 12...
Nc8 {[%clk 0:02:47.2]} 13. Na4 {[%clk 0:02:19.6]} 13... Ncb6 {[%clk 0:02:39.3]}
14. Nxb6 {[%clk 0:02:19]} 14... Nxb6 {[%clk 0:02:39.1]} 15. Rhd1 {[%clk
0:01:46.1]} 15... Be7 {[%clk 0:02:32.5]} 16. Bxb6+ {[%clk 0:01:27.8]} 16... Kxb6
{[%clk 0:02:30.8]} 17. Kc2 {[%clk 0:01:27.3]} 17... a4 {[%clk 0:02:17.5]} 18.
Kc3 {[%clk 0:01:24]} 18... Kc5 {[%clk 0:02:08.1]} 19. Ne1 {[%clk 0:01:12.4]}
19... Rhd8 {[%clk 0:02:05.6]} 20. Rxd8 {[%clk 0:01:09.8]} 20... Rxd8 {[%clk
0:02:04.4]} 21. Rxd8 {[%clk 0:01:07.8]} 21... Bxd8 {[%clk 0:02:02.8]} 22. Nd3+
{[%clk 0:01:08.4]} 22... Kb6 {[%clk 0:01:50.2]} 23. Kb4 {[%clk 0:01:08.5]} 23...
c5+ {[%clk 0:01:47.9]} 24. Kxa4 {[%clk 0:00:32.1]} 24... Bxc4 {[%clk 0:01:45.1]}
25. Nc1 {[%clk 0:00:32.2]} 25... Be6 {[%clk 0:01:37.8]} 26. b4 {[%clk
0:00:27.3]} 26... c4 {[%clk 0:01:33.3]} 27. b5 {[%clk 0:00:27.4]} 27... Kc5
{[%clk 0:01:31.3]} 28. f3 {[%clk 0:00:19.5]} 28... Bd7 {[%clk 0:01:25.9]} 29.
Bxc4 {[%clk 0:00:08.5]} 29... Kxc4 {[%clk 0:01:24.6]} 30. Nd3 {[%clk 0:00:01.3]}
30... Bxb5# {[%clk 0:01:24]} 0-1

[Event "Early-Titled-Tuesday-Blitz-January-16-2024"]
[Site "Chess.com"]
[Date "2024.01.16"]
[Round "8"]
[White "Felix-Rose"]
[Black "wild3000"]
[Result "1-0"]
[WhiteElo "2221"]
[BlackElo "2363"]
[TimeControl "180+1"]
[EndTime "9:31:14 PST"]
[Termination "Felix-Rose won by resignation"]

1. e4 {[%clk 0:03:00.3]} 1... a5 {[%clk 0:01:45.9]} 2. d4 {[%clk 0:02:59.6]}
2... h5 {[%clk 0:01:46.8]} 3. Nf3 {[%clk 0:02:59.2]} 3... a4 {[%clk 0:01:47.7]}
4. Bd3 {[%clk 0:02:55.8]} 4... h4 {[%clk 0:01:46.3]} 5. h3 {[%clk 0:02:55.3]}
5... d6 {[%clk 0:01:46.2]} 6. O-O {[%clk 0:02:52.3]} 6... e6 {[%clk 0:01:45]} 7.
Bg5 {[%clk 0:02:50.2]} 7... Be7 {[%clk 0:01:44.9]} 8. Qd2 {[%clk 0:02:48.2]}
8... Bxg5 {[%clk 0:01:44.2]} 9. Nxg5 {[%clk 0:02:44.7]} 9... Nf6 {[%clk
0:01:41.7]} 10. c4 {[%clk 0:02:43.7]} 10... c5 {[%clk 0:01:41.1]} 11. d5 {[%clk
0:02:37]} 11... Bd7 {[%clk 0:01:36]} 12. dxe6 {[%clk 0:02:31.3]} 12... Bxe6
{[%clk 0:01:35.8]} 13. Nxe6 {[%clk 0:02:31.2]} 13... fxe6 {[%clk 0:01:36.7]} 14.
e5 {[%clk 0:02:27.9]} 14... dxe5 {[%clk 0:01:36.7]} 15. Bg6+ {[%clk 0:02:28]}
15... Ke7 {[%clk 0:01:37]} 16. Qg5 {[%clk 0:02:09.8]} 16... Nc6 {[%clk
0:01:34.7]} 17. Nc3 {[%clk 0:02:05.1]} 17... Qd4 {[%clk 0:01:29.4]} 18. Ne4
{[%clk 0:01:47.5]} 18... Raf8 {[%clk 0:01:15.1]} 19. Rad1 {[%clk 0:01:43.3]}
19... Qxc4 {[%clk 0:01:14]} 20. Rc1 {[%clk 0:01:30.6]} 20... Qxa2 {[%clk
0:01:04.8]} 21. Nxc5 {[%clk 0:01:30.2]} 21... Rb8 {[%clk 0:00:45.1]} 22. Bb1
{[%clk 0:01:26.4]} 22... Qxb2 {[%clk 0:00:24.8]} 23. Qxg7+ {[%clk 0:01:22.9]}
23... Kd6 {[%clk 0:00:25]} 24. Qxf6 {[%clk 0:01:14.6]} 24... Nd4 {[%clk
0:00:18.8]} 25. Ne4+ {[%clk 0:01:07.1]} 25... Kd7 {[%clk 0:00:18.9]} 26. Qg7+
{[%clk 0:01:00.7]} 1-0

[Event "Early-Titled-Tuesday-Blitz-January-16-2024"]
[Site "Chess.com"]
[Date "2024.01.16"]
[Round "8"]
[White "Lennis93"]
[Black "HATilay"]
[Result "0-1"]
[WhiteElo "2753"]
[BlackElo "2587"]
[TimeControl "180+1"]
[EndTime "9:31:23 PST"]
[Termination "HATilay won by resignation"]

1. d4 {[%clk 0:03:00.9]} 1... Nf6 {[%clk 0:02:57.9]} 2. c4 {[%clk 0:03:01.5]}
2... e6 {[%clk 0:02:52]} 3. Nf3 {[%clk 0:02:52.3]} 3... d5 {[%clk 0:02:40.9]} 4.
Nbd2 {[%clk 0:02:47.6]} 4... c5 {[%clk 0:02:36.6]} 5. e3 {[%clk 0:02:46.2]} 5...
Nc6 {[%clk 0:02:36.6]} 6. b3 {[%clk 0:02:45.8]} 6... cxd4 {[%clk 0:02:30.1]} 7.
exd4 {[%clk 0:02:45.4]} 7... Bb4 {[%clk 0:02:29.9]} 8. Bb2 {[%clk 0:02:44.9]}
8... dxc4 {[%clk 0:02:30.1]} 9. bxc4 {[%clk 0:02:44]} 9... Ne4 {[%clk
0:02:28.2]} 10. a3 {[%clk 0:02:26.9]} 10... Ba5 {[%clk 0:02:28.1]} 11. Rc1
{[%clk 0:02:10]} 11... Nxd2 {[%clk 0:02:23.8]} 12. Nxd2 {[%clk 0:01:59.6]} 12...
b6 {[%clk 0:02:02.5]} 13. d5 {[%clk 0:01:51.6]} 13... exd5 {[%clk 0:01:53.4]}
14. cxd5 {[%clk 0:01:51.2]} 14... O-O {[%clk 0:01:48.3]} 15. dxc6 {[%clk
0:01:49.6]} 15... Re8+ {[%clk 0:01:48]} 16. Be2 {[%clk 0:01:43.6]} 16... Ba6
{[%clk 0:01:48]} 17. O-O {[%clk 0:01:30.2]} 17... Bxe2 {[%clk 0:01:44.5]} 18.
Qb3 {[%clk 0:01:22.9]} 18... Bxd2 {[%clk 0:01:31.2]} 19. Qg3 {[%clk 0:01:19.6]}
19... f6 {[%clk 0:01:20.4]} 20. c7 {[%clk 0:00:58]} 20... Qe7 {[%clk 0:01:20]}
21. h4 {[%clk 0:00:56.6]} 21... Bxf1 {[%clk 0:01:11.9]} 22. Rxf1 {[%clk
0:00:56.3]} 22... Rac8 {[%clk 0:01:12.4]} 23. Rd1 {[%clk 0:00:56.5]} 23... Bh6
{[%clk 0:01:12.2]} 24. Qf3 {[%clk 0:00:41.9]} 24... Qxc7 {[%clk 0:01:05.1]} 25.
g4 {[%clk 0:00:42.8]} 25... Bf4 {[%clk 0:00:59.6]} 26. Rd5 {[%clk 0:00:36.3]}
26... Be5 {[%clk 0:00:53.7]} 27. Qb3 {[%clk 0:00:35.6]} 27... Kh8 {[%clk
0:00:49]} 28. g5 {[%clk 0:00:25.7]} 28... Bxb2 {[%clk 0:00:47.3]} 0-1

[Event "Early-Titled-Tuesday-Blitz-January-16-2024"]
[Site "Chess.com"]
[Date "2024.01.16"]
[Round "8"]
[White "chito89"]
[Black "Nuvas"]
[Result "1-0"]
[WhiteElo "2940"]
[BlackElo "2788"]
[TimeControl "180+1"]
[EndTime "9:31:33 PST"]
[Termination "chito89 won by resignation"]

1. d4 {[%clk 0:03:00.9]} 1... d5 {[%clk 0:02:57.6]} 2. c4 {[%clk 0:03:01]} 2...
c6 {[%clk 0:02:58]} 3. cxd5 {[%clk 0:03:00]} 3... cxd5 {[%clk 0:02:57.9]} 4. Bg5
{[%clk 0:03:00.6]} 4... h6 {[%clk 0:02:54.9]} 5. Bh4 {[%clk 0:02:58.7]} 5... Qb6
{[%clk 0:02:54.8]} 6. Nc3 {[%clk 0:02:47.5]} 6... Qxb2 {[%clk 0:02:51]} 7. Nxd5
{[%clk 0:02:44.1]} 7... e6 {[%clk 0:02:28.4]} 8. Qc1 {[%clk 0:02:31.8]} 8...
Qxc1+ {[%clk 0:02:11.2]} 9. Rxc1 {[%clk 0:02:32.7]} 9... Na6 {[%clk 0:02:11.7]}
10. e4 {[%clk 0:01:46.9]} 10... exd5 {[%clk 0:01:11.8]} 11. Rxc8+ {[%clk
0:01:45.6]} 11... Rxc8 {[%clk 0:01:12.7]} 12. Bb5+ {[%clk 0:01:45.6]} 12... Rc6
{[%clk 0:01:13.3]} 13. exd5 {[%clk 0:01:46.3]} 13... Nb4 {[%clk 0:01:00.7]} 14.
dxc6 {[%clk 0:01:44.9]} 14... bxc6 {[%clk 0:01:01.6]} 15. Ba4 {[%clk 0:01:39.5]}
15... Bd6 {[%clk 0:00:55.9]} 16. Nf3 {[%clk 0:01:36.7]} 16... g5 {[%clk
0:00:46.6]} 17. Bg3 {[%clk 0:01:34.2]} 17... Bxg3 {[%clk 0:00:47.1]} 18. hxg3
{[%clk 0:01:35.1]} 18... Ne7 {[%clk 0:00:47.7]} 19. Nxg5 {[%clk 0:01:31.4]}
19... O-O {[%clk 0:00:40.7]} 20. Rxh6 {[%clk 0:01:29.4]} 20... Ng6 {[%clk
0:00:40.8]} 21. Bb3 {[%clk 0:01:20.9]} 21... Nd5 {[%clk 0:00:39.3]} 22. Kd2
{[%clk 0:01:04.9]} 22... Re8 {[%clk 0:00:29]} 23. f3 {[%clk 0:00:57.9]} 23... a5
{[%clk 0:00:24.3]} 24. Ne4 {[%clk 0:00:53.1]} 24... Kg7 {[%clk 0:00:22.3]} 25.
Rh5 {[%clk 0:00:52.2]} 25... Rd8 {[%clk 0:00:18.6]} 26. Bxd5 {[%clk 0:00:50.1]}
26... cxd5 {[%clk 0:00:19.5]} 27. Nc3 {[%clk 0:00:48.7]} 27... Ne7 {[%clk
0:00:20.1]} 28. Re5 {[%clk 0:00:48.5]} 28... Kf8 {[%clk 0:00:20.6]} 29. g4
{[%clk 0:00:44.5]} 29... Rd6 {[%clk 0:00:20.8]} 30. g5 {[%clk 0:00:44.4]} 30...
f6 {[%clk 0:00:20]} 31. gxf6 {[%clk 0:00:44.1]} 31... Rxf6 {[%clk 0:00:20.9]}
32. Rxe7 {[%clk 0:00:42.8]} 1-0

[Event "Early-Titled-Tuesday-Blitz-January-16-2024"]
[Site "Chess.com"]
[Date "2024.01.16"]
[Round "8"]
[White "kai_nov"]
[Black "pfalcon1949"]
[Result "1-0"]
[WhiteElo "2321"]
[BlackElo "1985"]
[TimeControl "180+1"]
[EndTime "9:31:34 PST"]
[Termination "kai_nov won by resignation"]

1. d4 {[%clk 0:02:53.2]} 1... Nf6 {[%clk 0:02:59.3]} 2. Nc3 {[%clk 0:02:52.2]}
2... d5 {[%clk 0:02:58.5]} 3. Bg5 {[%clk 0:02:51.5]} 3... c5 {[%clk 0:02:57.5]}
4. dxc5 {[%clk 0:02:51]} 4... e6 {[%clk 0:02:52.8]} 5. Nf3 {[%clk 0:02:47]} 5...
Bxc5 {[%clk 0:02:51.1]} 6. e4 {[%clk 0:02:46.8]} 6... d4 {[%clk 0:02:37]} 7. e5
{[%clk 0:02:35.9]} 7... h6 {[%clk 0:02:16.4]} 8. exf6 {[%clk 0:02:23.9]} 8...
hxg5 {[%clk 0:02:12.5]} 9. Ne4 {[%clk 0:02:19.9]} 9... Bf8 {[%clk 0:01:36.9]}
10. Qxd4 {[%clk 0:02:06.5]} 10... Qxd4 {[%clk 0:01:28.9]} 11. Nxd4 {[%clk
0:02:05.3]} 11... gxf6 {[%clk 0:01:29.1]} 12. Nxf6+ {[%clk 0:02:04.1]} 12... Ke7
{[%clk 0:01:29.1]} 13. Ne4 {[%clk 0:01:59.1]} 13... a6 {[%clk 0:01:25.2]} 14.
Nxg5 {[%clk 0:01:52.9]} 14... Bg7 {[%clk 0:01:24.1]} 15. Ngf3 {[%clk 0:01:50.7]}
15... Bd7 {[%clk 0:01:19.5]} 16. O-O-O {[%clk 0:01:49.5]} 16... Nc6 {[%clk
0:01:19.2]} 17. c3 {[%clk 0:01:45.8]} 17... Rac8 {[%clk 0:01:18.5]} 18. Kb1
{[%clk 0:01:37.3]} 18... e5 {[%clk 0:01:09.2]} 19. Nxc6+ {[%clk 0:01:34.2]}
19... Bxc6 {[%clk 0:01:08.4]} 20. Re1 {[%clk 0:01:32]} 20... Bxf3 {[%clk
0:00:42.2]} 21. gxf3 {[%clk 0:01:31.9]} 21... Rcd8 {[%clk 0:00:41.3]} 22. h4
{[%clk 0:01:29.1]} 22... Rd2 {[%clk 0:00:40.6]} 23. Rh2 {[%clk 0:01:23.6]} 23...
Bf6 {[%clk 0:00:36.3]} 24. h5 {[%clk 0:01:17.6]} 24... Rhd8 {[%clk 0:00:36.4]}
25. Bh3 {[%clk 0:01:13.8]} 25... Rd1+ {[%clk 0:00:33.3]} 26. Rxd1 {[%clk
0:01:13.1]} 26... Rxd1+ {[%clk 0:00:34.2]} 27. Kc2 {[%clk 0:01:12.7]} 27... Rg1
{[%clk 0:00:27.1]} 28. h6 {[%clk 0:01:10.2]} 28... Kf8 {[%clk 0:00:24]} 29. Bf5
{[%clk 0:01:04.9]} 29... Kg8 {[%clk 0:00:17.5]} 30. h7+ {[%clk 0:01:00.3]} 30...
Kh8 {[%clk 0:00:17.1]} 31. Be4 {[%clk 0:00:59.7]} 31... b6 {[%clk 0:00:16.4]}
32. Rh6 {[%clk 0:00:59.4]} 32... Bg7 {[%clk 0:00:10]} 33. Rxb6 {[%clk
0:00:56.3]} 33... Rg2 {[%clk 0:00:10.9]} 1-0

[Event "Early-Titled-Tuesday-Blitz-January-16-2024"]
[Site "Chess.com"]
[Date "2024.01.16"]
[Round "8"]
[White "Grandelicious"]
[Black "Arifarsky"]
[Result "1-0"]
[WhiteElo "2927"]
[BlackElo "2720"]
[TimeControl "180+1"]
[EndTime "9:31:36 PST"]
[Termination "Grandelicious won by resignation"]

1. g3 {[%clk 0:03:00.9]} 1... d5 {[%clk 0:02:49.3]} 2. Bg2 {[%clk 0:02:56.1]}
2... Nf6 {[%clk 0:02:49.9]} 3. Nf3 {[%clk 0:02:55.9]} 3... Bf5 {[%clk
0:02:43.7]} 4. O-O {[%clk 0:02:51.2]} 4... c6 {[%clk 0:02:43.8]} 5. c4 {[%clk
0:02:51.9]} 5... e6 {[%clk 0:02:40.8]} 6. cxd5 {[%clk 0:02:51.8]} 6... cxd5
{[%clk 0:02:36.7]} 7. Qb3 {[%clk 0:02:51.1]} 7... Nbd7 {[%clk 0:02:28]} 8. Qxb7
{[%clk 0:02:47.5]} 8... Bc5 {[%clk 0:02:23.2]} 9. Nc3 {[%clk 0:02:35.2]} 9...
O-O {[%clk 0:02:20.6]} 10. d3 {[%clk 0:02:35.8]} 10... h6 {[%clk 0:02:12.5]} 11.
Bf4 {[%clk 0:02:28.2]} 11... Nb6 {[%clk 0:01:53.1]} 12. Rac1 {[%clk 0:02:16.2]}
12... Bd6 {[%clk 0:01:39.8]} 13. Bxd6 {[%clk 0:02:07.9]} 13... Qxd6 {[%clk
0:01:40.7]} 14. Qa6 {[%clk 0:01:58.7]} 14... Bh7 {[%clk 0:01:26.8]} 15. Qa5
{[%clk 0:01:51.4]} 15... Nfd7 {[%clk 0:01:14.1]} 16. Nb5 {[%clk 0:01:48.7]}
16... Qe7 {[%clk 0:01:06.2]} 17. Rc7 {[%clk 0:01:47.8]} 17... Qd8 {[%clk
0:00:59.2]} 18. Rfc1 {[%clk 0:01:38.8]} 18... a6 {[%clk 0:00:56.5]} 19. Nbd4
{[%clk 0:01:38.7]} 19... Qb8 {[%clk 0:00:52.7]} 20. Nc6 {[%clk 0:01:32.8]} 20...
Qe8 {[%clk 0:00:52.8]} 21. Nfe5 {[%clk 0:01:27.9]} 21... Nxe5 {[%clk 0:00:50.1]}
22. Nxe5 {[%clk 0:01:28.8]} 22... Qb5 {[%clk 0:00:49]} 23. Qxb5 {[%clk
0:01:19.7]} 23... axb5 {[%clk 0:00:49.9]} 24. Rb7 {[%clk 0:01:20.1]} 24... Nc8
{[%clk 0:00:33.1]} 25. a3 {[%clk 0:01:09.1]} 25... Nd6 {[%clk 0:00:33.4]} 26.
Rb6 {[%clk 0:01:09.3]} 26... Rfd8 {[%clk 0:00:30.8]} 27. Rc7 {[%clk 0:01:04.7]}
27... f6 {[%clk 0:00:17.2]} 28. Nc6 {[%clk 0:01:02.6]} 28... Ne8 {[%clk
0:00:14.8]} 29. Rcb7 {[%clk 0:00:48.4]} 29... Rd6 {[%clk 0:00:13.8]} 30. Nd4
{[%clk 0:00:48.5]} 30... e5 {[%clk 0:00:13]} 31. Nxb5 {[%clk 0:00:48]} 1-0

[Event "Early-Titled-Tuesday-Blitz-January-16-2024"]
[Site "Chess.com"]
[Date "2024.01.16"]
[Round "8"]
[White "Garbaranza"]
[Black "MokshAD1603"]
[Result "1/2-1/2"]
[WhiteElo "2433"]
[BlackElo "2590"]
[TimeControl "180+1"]
[EndTime "9:31:44 PST"]
[Termination "Game drawn - insufficient material"]

1. e4 {[%clk 0:02:59.2]} 1... c5 {[%clk 0:02:55.6]} 2. Nc3 {[%clk 0:02:58.3]}
2... d6 {[%clk 0:02:54.3]} 3. f4 {[%clk 0:02:57.7]} 3... g6 {[%clk 0:02:52.1]}
4. Nf3 {[%clk 0:02:58]} 4... Bg7 {[%clk 0:02:51.8]} 5. Bc4 {[%clk 0:02:58.6]}
5... Nc6 {[%clk 0:02:51.1]} 6. O-O {[%clk 0:02:58.9]} 6... e6 {[%clk 0:02:51.8]}
7. d3 {[%clk 0:02:56.3]} 7... Nge7 {[%clk 0:02:52.1]} 8. Qe1 {[%clk 0:02:55.2]}
8... O-O {[%clk 0:02:52.4]} 9. f5 {[%clk 0:02:47.1]} 9... gxf5 {[%clk
0:02:50.7]} 10. Qh4 {[%clk 0:02:46.2]} 10... Ng6 {[%clk 0:02:28.4]} 11. Qh5
{[%clk 0:02:46.2]} 11... Nd4 {[%clk 0:02:23.7]} 12. Ng5 {[%clk 0:02:35.6]} 12...
h6 {[%clk 0:02:20.9]} 13. Nxf7 {[%clk 0:02:33.2]} 13... Rxf7 {[%clk 0:02:14.1]}
14. Qxg6 {[%clk 0:02:31.7]} 14... Nxc2 {[%clk 0:01:58.8]} 15. Rb1 {[%clk
0:02:07.4]} 15... b5 {[%clk 0:01:47]} 16. Nxb5 {[%clk 0:01:59.4]} 16... d5
{[%clk 0:01:43.4]} 17. Bb3 {[%clk 0:01:51.2]} 17... Ba6 {[%clk 0:01:27.1]} 18.
Bxc2 {[%clk 0:01:42.9]} 18... Bxb5 {[%clk 0:01:23.8]} 19. exf5 {[%clk
0:01:41.7]} 19... exf5 {[%clk 0:01:21.8]} 20. Rxf5 {[%clk 0:01:22.1]} 20... Rxf5
{[%clk 0:01:13.4]} 21. Qxf5 {[%clk 0:01:22]} 21... Qd7 {[%clk 0:01:14.3]} 22.
Qxd7 {[%clk 0:01:04.5]} 22... Bxd7 {[%clk 0:01:13.7]} 23. Bb3 {[%clk 0:01:04.9]}
23... Be6 {[%clk 0:01:12.6]} 24. Be3 {[%clk 0:01:04]} 24... c4 {[%clk
0:01:12.4]} 25. dxc4 {[%clk 0:01:03.2]} 25... dxc4 {[%clk 0:01:13.3]} 26. Bc2
{[%clk 0:01:03]} 26... Rb8 {[%clk 0:01:13.5]} 27. Bxa7 {[%clk 0:00:52.6]} 27...
Ra8 {[%clk 0:01:13.9]} 28. Bc5 {[%clk 0:00:46.3]} 28... Rxa2 {[%clk 0:01:14]}
29. Ba3 {[%clk 0:00:46.4]} 29... c3 {[%clk 0:01:13.5]} 30. Re1 {[%clk
0:00:36.5]} 30... Bf7 {[%clk 0:01:08.5]} 31. Bb1 {[%clk 0:00:24.9]} 31... Ra1
{[%clk 0:01:07.9]} 32. Bh7+ {[%clk 0:00:22.4]} 32... Kxh7 {[%clk 0:01:08]} 33.
Rxa1 {[%clk 0:00:22.9]} 33... cxb2 {[%clk 0:01:08]} 34. Rb1 {[%clk 0:00:22.5]}
34... Bg6 {[%clk 0:01:07.4]} 35. Rxb2 {[%clk 0:00:22.7]} 35... Bxb2 {[%clk
0:01:07.3]} 36. Bxb2 {[%clk 0:00:22.9]} 36... Be4 {[%clk 0:01:08.2]} 37. Kf2
{[%clk 0:00:22.9]} 37... h5 {[%clk 0:01:08.5]} 38. h3 {[%clk 0:00:21.1]} 38...
Kg6 {[%clk 0:01:08.5]} 39. Be5 {[%clk 0:00:21.1]} 39... Kf5 {[%clk 0:01:07.8]}
40. Bc7 {[%clk 0:00:21.1]} 40... Bc6 {[%clk 0:01:07.8]} 41. Bd8 {[%clk 0:00:21]}
41... Kg6 {[%clk 0:01:07.5]} 42. g4 {[%clk 0:00:20.5]} 42... hxg4 {[%clk
0:01:07.7]} 43. hxg4 {[%clk 0:00:20.8]} 43... Bd7 {[%clk 0:01:08.6]} 44. Kg3
{[%clk 0:00:20.9]} 44... Bxg4 {[%clk 0:01:08.5]} 1/2-1/2

[Event "Early-Titled-Tuesday-Blitz-January-16-2024"]
[Site "Chess.com"]
[Date "2024.01.16"]
[Round "8"]
[White "1mbl4"]
[Black "InitiatingASC"]
[Result "0-1"]
[WhiteElo "2572"]
[BlackElo "2440"]
[TimeControl "180+1"]
[EndTime "9:31:47 PST"]
[Termination "InitiatingASC won on time"]

1. e4 {[%clk 0:03:00.9]} 1... c5 {[%clk 0:02:56.9]} 2. Nc3 {[%clk 0:03:00.2]}
2... Nc6 {[%clk 0:02:54.1]} 3. f4 {[%clk 0:02:56]} 3... e6 {[%clk 0:02:50.1]} 4.
Nf3 {[%clk 0:02:54.7]} 4... a6 {[%clk 0:02:49.2]} 5. a4 {[%clk 0:02:46.4]} 5...
Nge7 {[%clk 0:02:48.4]} 6. e5 {[%clk 0:02:36.1]} 6... d6 {[%clk 0:02:44.3]} 7.
exd6 {[%clk 0:02:22.7]} 7... Qxd6 {[%clk 0:02:42.4]} 8. Bc4 {[%clk 0:02:10.5]}
8... Qxf4 {[%clk 0:02:40.1]} 9. d3 {[%clk 0:02:09.7]} 9... Qc7 {[%clk 0:02:40]}
10. O-O {[%clk 0:02:07.9]} 10... h6 {[%clk 0:02:33.9]} 11. Ne4 {[%clk
0:01:43.5]} 11... Nf5 {[%clk 0:02:32.1]} 12. g4 {[%clk 0:01:32.1]} 12... Nfd4
{[%clk 0:02:23.6]} 13. c3 {[%clk 0:01:31.7]} 13... Nxf3+ {[%clk 0:02:19.9]} 14.
Qxf3 {[%clk 0:01:30.1]} 14... Ne5 {[%clk 0:02:20.1]} 15. Qg3 {[%clk 0:01:06]}
15... f6 {[%clk 0:01:49.7]} 16. Bf4 {[%clk 0:00:35.4]} 16... Bd6 {[%clk
0:01:43.4]} 17. Nxd6+ {[%clk 0:00:29.2]} 17... Qxd6 {[%clk 0:01:42.3]} 18. Rae1
{[%clk 0:00:29.3]} 18... O-O {[%clk 0:01:36.6]} 19. Bxe5 {[%clk 0:00:27.8]}
19... fxe5 {[%clk 0:01:36.3]} 20. Rxf8+ {[%clk 0:00:23.8]} 20... Kxf8 {[%clk
0:01:31.6]} 21. Qxe5 {[%clk 0:00:24.6]} 21... Qxe5 {[%clk 0:01:29.2]} 22. Rxe5
{[%clk 0:00:24.8]} 22... b5 {[%clk 0:01:26.3]} 23. axb5 {[%clk 0:00:24.4]} 23...
axb5 {[%clk 0:01:26.6]} 24. Bxb5 {[%clk 0:00:23.7]} 24... Ra1+ {[%clk
0:01:20.3]} 25. Kf2 {[%clk 0:00:22.5]} 25... Rb1 {[%clk 0:01:20.3]} 26. Rxc5
{[%clk 0:00:16.7]} 26... Rxb2+ {[%clk 0:01:19.1]} 27. Ke3 {[%clk 0:00:14.7]}
27... Bb7 {[%clk 0:01:14.1]} 28. Bc4 {[%clk 0:00:14.5]} 28... Ke7 {[%clk
0:01:12.3]} 29. Rc7+ {[%clk 0:00:14.3]} 29... Kf6 {[%clk 0:01:12.6]} 30. h4
{[%clk 0:00:11.8]} 30... g5 {[%clk 0:01:10.4]} 31. hxg5+ {[%clk 0:00:11.3]}
31... hxg5 {[%clk 0:01:10.6]} 32. Kd4 {[%clk 0:00:10.6]} 32... Bf3 {[%clk
0:01:08.4]} 33. Rh7 {[%clk 0:00:06.6]} 33... Bxg4 {[%clk 0:01:07.9]} 34. Kc5
{[%clk 0:00:02]} 34... Bf5 {[%clk 0:01:05.5]} 35. Rh6+ {[%clk 0:00:00.9]} 35...
Kg7 {[%clk 0:01:04.6]} 0-1